{"text_format":"1","workbook":"xlsx","n_sheets":3,"sheets":["Leer","Beispiel Mirjam","Referenzen für Dropdown"],"not_rendered":{"charts":0,"images":0,"macros":1,"external_links":0,"defined_names":25,"comments":3,"pivot_tables":0},"unopened":[],"bounds":{"document_bytes":16777216,"sheet_cells":100000,"rows_first":2000,"rows_last":500,"rows_between":2000,"halvings":0,"cell_chars":16384,"cell_head_chars":4096},"cells_cut":0,"cells_raw":0,"read":"whole","date_system":"1900"}

{"sheet":"Leer","index":0,"n_rows":42,"n_cols":49,"rows_kept":42,"cut":false,"hidden":false,"merged":[[3,6,3,8],[6,12,6,16],[6,17,6,20],[27,1,27,10],[27,12,27,42]]}
[]
[null,"GRUNDLAGEN",null,null,null,null,null,null,null,null,null,null,null,null,null,null,null,null,null,null,null,null,null,null,null,null,null,null,null,null,null,null,null,null,null,null,null,null,null,null,null,null,null,null,null,null,null,null,"Scrollschrittweite:"]
[null,"Abteilung:","Private Banking",null,null,null,null,null,null,null,null,null,null,{"$f":"'Referenzen für Dropdown'!D3","v":"Abteilungsinterne Teilfähigkeiten"},null,null,null,null,null,null,null,null,null,null,{"$f":"'Referenzen für Dropdown'!D5","v":"Gespräche"},null,null,null,null,null,{"$f":"'Referenzen für Dropdown'!D7","v":"ALS Teilfähigkeiten"},null,null,null,null,null,null,{"$f":"'Referenzen für Dropdown'!D4","v":"Spielregeln"},null,null,null,null,null,null,null,null,null,null,{"$f":"R7-Einsatz_Start","v":0}]
[null,"Lernende/r:","Maria Musterman"]
[null,"Praxisaubilder:","Max Musterman",null,null,null,null,null,null,null,null,null,null,{"$f":"'Referenzen für Dropdown'!D6","v":"Abteilungsinterne Aufgaben"},null,null,null,null,null,null,null,null,null,null,{"$f":"'Referenzen für Dropdown'!D8","v":"Administration"},null,null,null,null,null,{"$f":"'Referenzen für Dropdown'!D9","v":"Qualifikation / ALS"}]
[null,"Start:","2021-02-01"]
[null,"Ende:","2021-08-01",null,null,null,null,null,null,null,null,null,"Ansicht ab dem:",null,null,null,null,"2021-02-01"]
[null,null,null,null,null,null,null,null,null,null,null,null,{"$f":"TEXT(M9,\"MMMM\")","v":"Februar"},{"$f":"IF(DAY(N9)=1,TEXT(N9,\"MMMM\"),\"\")","v":""},"","","","","",null,null,{"$f":"IF(DAY(V9)=1,TEXT(V9,\"MMMM\"),\"\")","v":""},{"$f":"IF(DAY(W9)=1,TEXT(W9,\"MMMM\"),\"\")","v":""},{"$f":"IF(DAY(Y9)=1,TEXT(Y9,\"MMMM\"),\"\")","v":""},"","","","","","","","","","","","","","","","März","",""]
[null,null,null,null,null,null,null,null,null,null,null,null,{"$f":"IFERROR(Projekt_Start+AW3,\"Fehler\")","v":"2021-02-01"},{"$f":"Erstes_Datum+1","v":"2021-02-02"},{"$f":"N9+1","v":"2021-02-03"},{"$f":"O9+1","v":"2021-02-04"},{"$f":"P9+1","v":"2021-02-05"},{"$f":"Q9+1","v":"2021-02-06"},"2021-02-07","2021-02-08","2021-02-09",{"$f":"U9+1","v":"2021-02-10"},{"$f":"V9+1","v":"2021-02-11"},"2021-02-12","2021-02-13","2021-02-14","2021-02-15","2021-02-16","2021-02-17","2021-02-18","2021-02-19","2021-02-20","2021-02-21","2021-02-22","2021-02-23","2021-02-24","2021-02-25","2021-02-26","2021-02-27","2021-02-28","2021-03-01","2021-03-02","2021-03-03"]
[]
[null,"THEMA","TEILFÄHIGKEIT","KATEGORIE","INSTRUKTION / METHODIK","BEWERTUNG","ANFANG","ENDE","STATUS","Anzahl Tage","VERANTWORTLICH",null,{"$f":"LEFT(TEXT(M9,\"TTT\"),1)","v":"M"},"D","M","D","F","S","S","M","D","M","D","F","S","S","M","D","M","D","F","S","S","M","D","M","D","F","S","S","M","D","M"]
[null,null,null,"Qualifikation / ALS",null,null,"2021-02-01","2021-02-20",null,{"$f":"(IF($H12=\"\",\"1\",_xlfn.DAYS($H12,$G12)))","v":19},null,null,{"$f":"OR(M$9=$G12,AND(M$9<$G12+$J12,M$9>$G12),M$9=$H12)","v":true},{"$f":"OR(N$9=$G12,AND(N$9<$G12+$J12,N$9>$G12),N$9=$H12)","v":true},true,true,true,true,true,true,true,true,true,true,true,true,true,true,{"$f":"OR(AC$9=$G12,AND(AC$9<$G12+$J12,AC$9>$G12),AC$9=$H12)","v":true},true,true,true,false,false,false,false,false,false,false,false,false,false,false]
[null,null,null,null,null,null,null,null,null,{"$f":"(IF($H13=\"\",\"1\",_xlfn.DAYS($H13,$G13)))","v":"1"},null,null,false,false,false,false,false,false,false,false,false,false,false,false,false,false,false,false,false,false,false,false,false,false,false,false,false,false,false,false,false,false,false]
[null,null,null,null,null,null,null,null,null,"1",null,null,false,false,false,false,false,false,false,false,false,false,false,false,false,false,false,false,false,false,false,false,false,false,false,false,false,false,false,false,false,false,false]
[null,null,null,null,null,null,null,null,null,"1",null,null,false,false,false,false,false,false,false,false,false,false,false,false,false,false,false,false,false,false,false,false,false,false,false,false,false,false,false,false,false,false,false]
[null,null,null,null,null,null,null,null,null,"1",null,null,false,false,false,false,false,false,false,false,false,false,false,false,false,false,false,false,false,false,false,false,false,false,false,false,false,false,false,false,false,false,false]
[null,null,null,null,null,null,null,null,null,"1",null,null,false,false,false,false,false,false,false,false,false,false,false,false,false,false,false,false,false,false,false,false,false,false,false,false,false,false,false,false,false,false,false]
[null,null,null,null,null,null,null,null,null,"1",null,null,false,false,false,false,false,false,false,false,false,false,false,false,false,false,false,false,false,false,false,false,false,false,false,false,false,false,false,false,false,false,false]
[null,null,null,null,null,null,null,null,null,"1",null,null,false,false,false,false,false,false,false,false,false,false,false,false,false,false,false,false,false,false,false,false,false,false,false,false,false,false,false,false,false,false,false]
[null,null,null,null,null,null,null,null,null,"1",null,null,false,false,false,false,false,false,false,false,false,false,false,false,false,false,false,false,false,false,false,false,false,false,false,false,false,false,false,false,false,false,false]
[null,null,null,null,null,null,null,null,null,"1",null,null,false,false,false,false,false,false,false,false,false,false,false,false,false,false,false,false,false,false,false,false,false,false,false,false,false,false,false,false,false,false,false]
[null,null,null,null,null,null,null,null,null,"1",null,null,false,false,false,false,false,false,false,false,false,false,false,false,false,false,false,false,false,false,false,false,false,false,false,false,false,false,false,false,false,false,false]
[null,null,null,null,null,null,null,null,null,"1",null,null,false,false,false,false,false,false,false,false,false,false,false,false,false,false,false,false,false,false,false,false,false,false,false,false,false,false,false,false,false,false,false]
[null,null,null,null,null,null,null,null,null,"1",null,null,false,false,false,false,false,false,false,false,false,false,false,false,false,false,false,false,false,false,false,false,false,false,false,false,false,false,false,false,false,false,false]
[null,null,null,null,null,null,null,null,null,"1",null,null,false,false,false,false,false,false,false,false,false,false,false,false,false,false,false,false,false,false,false,false,false,false,false,false,false,false,false,false,false,false,false]
[null,null,null,null,null,null,null,null,null,"1",null,null,false,false,false,false,false,false,false,false,false,false,false,false,false,false,false,false,false,false,false,false,false,false,false,false,false,false,false,false,false,false,false]
[null,"(Muss immer letzte Zeile sein)",null,null,null,null,null,null,null,"1",null,null,{"$f":"OR(M$9=$G27,AND(M$9<$G27+$J27,M$9>$G27),M$9=$H27)","v":false},false,false,false,false,false,false,false,false,false,false,false,false,false,false,false,{"$f":"OR(AC$9=$G27,AND(AC$9<$G27+$J27,AC$9>$G27),AC$9=$H27)","v":false},false,false,false,false,false,false,false,false,false,false,false,false,false,false]
[null,{"$f":"\"1) Weitere Zeile hinzufügen: Allfällige Filter entfernen. \"&\"Beim Zeilenindex die Nummer \"&ROW($27:$27)&\" anklicken, so dass die gesamte Zeile ausgewählt wird. Dann unter Start > Zellen > auf \"\"Einfügen\"\" klicken.\"","v":"1) Weitere Zeile hinzufügen: Allfällige Filter entfernen. Beim Zeilenindex die Nummer 27 anklicken, so dass die gesamte Zeile ausgewählt wird. Dann unter Start > Zellen > auf \"Einfügen\" klicken."},null,null,null,null,null,null,null,null,null,null,{"$f":"\"2) Formel auf neue Zeile anwenden: \"&\"M\"&ROW($28:$28)-2&\" bis AQ\"&ROW($28:$28)-2&\" anwählen und den unteren rechten Ecken der Auswahl auf Zeile \"&ROW($28:$28)-1&\" ziehen.\"","v":"2) Formel auf neue Zeile anwenden: M26 bis AQ26 anwählen und den unteren rechten Ecken der Auswahl auf Zeile 27 ziehen."}]
[]
[]
["Der Ausbildungsplan wurde zu Beginn des Einsatzes mit dem Lernenden besprochen und abgegeben:"]
[]
[]
[]
["Datum und Unterschrift Berufsbildner/in",null,"Datum und Unterschrift Lernender"]
[]
[]
["Hiermit bestätige ich, dass ich die Abschlussarbeiten vollständig erledigt, Einsicht in die Lerndokumentation genommen und Feedback dazu gegeben habe:"]
[]
[]
[]
["Datum und Unterschrift Berufsbildner/in"]

{"sheet":"Beispiel Mirjam","index":1,"n_rows":132,"n_cols":49,"rows_kept":132,"cut":false,"hidden":false,"merged":[[3,6,3,8],[6,12,6,16],[6,17,6,20],[117,1,117,10],[117,12,117,42]]}
[]
[null,"GRUNDLAGEN",null,null,null,null,null,null,null,null,null,null,null,null,null,null,null,null,null,null,null,null,null,null,null,null,null,null,null,null,null,null,null,null,null,null,null,null,null,null,null,null,null,null,null,null,null,null,"Scrollschrittweite:"]
[null,"Abteilung:","Private Banking",null,null,null,null,null,null,null,null,null,null,{"$f":"'Referenzen für Dropdown'!D3","v":"Abteilungsinterne Teilfähigkeiten"},null,null,null,null,null,null,null,null,null,null,{"$f":"'Referenzen für Dropdown'!D5","v":"Gespräche"},null,null,null,null,null,{"$f":"'Referenzen für Dropdown'!D7","v":"ALS Teilfähigkeiten"},null,null,null,null,null,null,{"$f":"'Referenzen für Dropdown'!D4","v":"Spielregeln"},null,null,null,null,null,null,null,null,null,null,{"$f":"R7-Einsatz_Start","v":0}]
[null,"Lernende/r:","Maria Musterman"]
[null,"Praxisaubilder:","Max Musterman",null,null,null,null,null,null,null,null,null,null,{"$f":"'Referenzen für Dropdown'!D6","v":"Abteilungsinterne Aufgaben"},null,null,null,null,null,null,null,null,null,null,{"$f":"'Referenzen für Dropdown'!D8","v":"Administration"},null,null,null,null,null,{"$f":"'Referenzen für Dropdown'!D9","v":"Qualifikation / ALS"}]
[null,"Start:","2021-02-01"]
[null,"Ende:","2021-08-01",null,null,null,null,null,null,null,null,null,"Ansicht ab dem:",null,null,null,null,"2021-02-01"]
[null,null,null,null,null,null,null,null,null,null,null,null,{"$f":"TEXT(M9,\"MMMM\")","v":"Februar"},{"$f":"IF(DAY(N9)=1,TEXT(N9,\"MMMM\"),\"\")","v":""},"","","","","",null,null,{"$f":"IF(DAY(V9)=1,TEXT(V9,\"MMMM\"),\"\")","v":""},{"$f":"IF(DAY(W9)=1,TEXT(W9,\"MMMM\"),\"\")","v":""},{"$f":"IF(DAY(Y9)=1,TEXT(Y9,\"MMMM\"),\"\")","v":""},"","","","","","","","","","","","","","","","März","",""]
[null,null,null,null,null,null,null,null,null,null,null,null,{"$f":"IFERROR(Projekt_Start+AW3,\"Fehler\")","v":"2021-02-01"},{"$f":"Erstes_Datum+1","v":"2021-02-02"},{"$f":"N9+1","v":"2021-02-03"},{"$f":"O9+1","v":"2021-02-04"},{"$f":"P9+1","v":"2021-02-05"},{"$f":"Q9+1","v":"2021-02-06"},"2021-02-07","2021-02-08","2021-02-09",{"$f":"U9+1","v":"2021-02-10"},{"$f":"V9+1","v":"2021-02-11"},"2021-02-12","2021-02-13","2021-02-14","2021-02-15","2021-02-16","2021-02-17","2021-02-18","2021-02-19","2021-02-20","2021-02-21","2021-02-22","2021-02-23","2021-02-24","2021-02-25","2021-02-26","2021-02-27","2021-02-28","2021-03-01","2021-03-02","2021-03-03"]
[]
[null,"THEMA","TEILFÄHIGKEIT","KATEGORIE","INSTRUKTION / METHODIK","BEWERTUNG","ANFANG","ENDE","STATUS","Anzahl Tage","VERANTWORTLICH",null,{"$f":"LEFT(TEXT(M9,\"TTT\"),1)","v":"M"},"D","M","D","F","S","S","M","D","M","D","F","S","S","M","D","M","D","F","S","S","M","D","M","D","F","S","S","M","D","M"]
[null,"Abteilungsinterne Teilfähigkeiten","B.1.1.3 Eröffnung einer neuen Kundenbeziehung / Aufhebung einer bestehenden Kundenbeziehung","Abteilungsinterne Teilfähigkeiten","Learning on the Job","Teilnahme an Kundengespräch, Simulationsgespräch","2021-02-01","2021-07-31","offen",{"$f":"(IF($H12=\"\",\"1\",_xlfn.DAYS($H12,$G12)))","v":180},"Felix Fröhlich",null,{"$f":"OR(M$9=$G12,AND(M$9<$G12+$J12,M$9>$G12),M$9=$H12)","v":true},{"$f":"OR(N$9=$G12,AND(N$9<$G12+$J12,N$9>$G12),N$9=$H12)","v":true},true,true,true,true,true,true,true,true,true,true,true,true,true,true,{"$f":"OR(AC$9=$G12,AND(AC$9<$G12+$J12,AC$9>$G12),AC$9=$H12)","v":true},true,true,true,true,true,true,true,true,true,true,true,true,true,true]
[null,"Abteilungsinterne Teilfähigkeiten","B.2.1.1 Produkte des Zahlungsverkehrs beschreiben und erklären","Abteilungsinterne Teilfähigkeiten","Learning on the Job, CYP-Kurse","Beobachtung, mündliche Erklärung, Teilnahme an Kundengespräch","2021-02-01","2021-07-31","offen",{"$f":"(IF($H13=\"\",\"1\",_xlfn.DAYS($H13,$G13)))","v":180},"Felix Fröhlich",null,true,true,true,true,true,true,true,true,true,true,true,true,true,true,true,true,true,true,true,true,true,true,true,true,true,true,true,true,true,true,true]
[null,"Abteilungsinterne Teilfähigkeiten","B.2.1.3 Ablauf einer Zahlung erklären","Abteilungsinterne Teilfähigkeiten","Learning on the Job, CYP-Kurse","mündliche Erklärung","2021-02-01","2021-07-31","offen",180,"Felix Fröhlich",null,true,true,true,true,true,true,true,true,true,true,true,true,true,true,true,true,true,true,true,true,true,true,true,true,true,true,true,true,true,true,true]
[null,"Abteilungsinterne Teilfähigkeiten","B.3.1.1 Abwicklung von Basisdienstleistungen ausführen","Abteilungsinterne Teilfähigkeiten","Praxisbeispiele erleben","Beobachtung","2021-02-01","2021-07-31","offen",180,"Felix Fröhlich",null,true,true,true,true,true,true,true,true,true,true,true,true,true,true,true,true,true,true,true,true,true,true,true,true,true,true,true,true,true,true,true]
[null,"Abteilungsinterne Teilfähigkeiten","B.3.1.2 Preisgestaltung bei Basisdienstleistungen erklären","Abteilungsinterne Teilfähigkeiten","Learning on the Job, CYP-Kurse","Teilnahme an Kundengespräch","2021-02-01","2021-07-31","offen",180,"Felix Fröhlich",null,true,true,true,true,true,true,true,true,true,true,true,true,true,true,true,true,true,true,true,true,true,true,true,true,true,true,true,true,true,true,true]
[null,"Abteilungsinterne Teilfähigkeiten","C.1.1.1 Wertpapiere und deren Übertragungsart erklären","Abteilungsinterne Teilfähigkeiten","CYP-Kurse","mündliche Erklärung","2021-02-01","2021-07-31","offen",180,"Felix Fröhlich",null,true,true,true,true,true,true,true,true,true,true,true,true,true,true,true,true,true,true,true,true,true,true,true,true,true,true,true,true,true,true,true]
[null,"Abteilungsinterne Teilfähigkeiten","C.1.1.2 Wertpapiere nach Arten und Kriterien unterscheiden","Abteilungsinterne Teilfähigkeiten","Learning on the Job, CYP-Kurse","mündliche Erklärung","2021-02-01","2021-07-31","offen",180,"Felix Fröhlich",null,true,true,true,true,true,true,true,true,true,true,true,true,true,true,true,true,true,true,true,true,true,true,true,true,true,true,true,true,true,true,true]
[null,"Abteilungsinterne Teilfähigkeiten","C.1.2.1 Rating und Renditeberechnung eines Gläubigerpapiers erklären","Abteilungsinterne Teilfähigkeiten","CYP-Kurse, Instruktion gemäss ARIVA","Simulationsgespräch, Beobachtung","2021-02-01","2021-07-31","offen",180,"Felix Fröhlich",null,true,true,true,true,true,true,true,true,true,true,true,true,true,true,true,true,true,true,true,true,true,true,true,true,true,true,true,true,true,true,true]
[null,"Abteilungsinterne Teilfähigkeiten","C.1.3.1 Begriff Anlagefonds definieren und beteiligte Parteien im Anlagefondsgeschäft beschreiben","Abteilungsinterne Teilfähigkeiten","CYP-Kurse, Simulationsgespräche","Teilnahme an Kundengespräch, Simulationsgespräch","2021-02-01","2021-07-31","offen",180,"Felix Fröhlich",null,true,true,true,true,true,true,true,true,true,true,true,true,true,true,true,true,true,true,true,true,true,true,true,true,true,true,true,true,true,true,true]
[null,"Abteilungsinterne Teilfähigkeiten","C.5.1.1 Anlagestrategie zuordnen","Abteilungsinterne Teilfähigkeiten","Simulationsgespräche, Praxisbeispiele erleben","Teilnahme an Kundengespräch","2021-02-01","2021-07-31","offen",180,"Felix Fröhlich",null,true,true,true,true,true,true,true,true,true,true,true,true,true,true,true,true,true,true,true,true,true,true,true,true,true,true,true,true,true,true,true]
[null,"Abteilungsinterne Teilfähigkeiten","C.5.1.2 Kundendepot analysieren","Abteilungsinterne Teilfähigkeiten","Simulationsgespräche, Praxisbeispiele erleben","Simulationsgespräch","2021-02-01","2021-07-31","offen",180,"Felix Fröhlich",null,true,true,true,true,true,true,true,true,true,true,true,true,true,true,true,true,true,true,true,true,true,true,true,true,true,true,true,true,true,true,true]
[null,"Abteilungsinterne Teilfähigkeiten","C.5.1.3 Anlagevorschläge erarbeiten","Abteilungsinterne Teilfähigkeiten","Praxisbeispiele erleben, Simulationsgespräche","Simulationsgespräch","2021-02-01","2021-07-31","offen",180,"Felix Fröhlich",null,true,true,true,true,true,true,true,true,true,true,true,true,true,true,true,true,true,true,true,true,true,true,true,true,true,true,true,true,true,true,true]
[null,"Abteilungsinterne Teilfähigkeiten","C.5.2.1 Risikoaufklärung im Effektenhandels- und Vermögensverwaltungs-geschäft erläutern","Abteilungsinterne Teilfähigkeiten","CYP-Kurse, Instruktion gemäss ARIVA","Teilnahme an Kundengespräch","2021-02-01","2021-07-31","offen",180,"Felix Fröhlich",null,true,true,true,true,true,true,true,true,true,true,true,true,true,true,true,true,true,true,true,true,true,true,true,true,true,true,true,true,true,true,true]
[null,"Abteilungsinterne Teilfähigkeiten","C.5.3.1 Aufbewahrung und Verwaltung von Vermögenswerten und Dokumenten beschreiben und Gebühren begründen","Abteilungsinterne Teilfähigkeiten","Instruktion gemäss ARIVA","mündliche Erklärung, Beobachtung, Präsentation","2021-02-01","2021-07-31","offen",180,"Felix Fröhlich",null,true,true,true,true,true,true,true,true,true,true,true,true,true,true,true,true,true,true,true,true,true,true,true,true,true,true,true,true,true,true,true]
[null,"Abteilungsinterne Teilfähigkeiten","D.1.1.1 Kreditpolitik der eigenen Bank erklären","Abteilungsinterne Teilfähigkeiten","Instruktion gemäss ARIVA","mündliche Erklärung","2021-02-01","2021-07-31","offen",180,"Felix Fröhlich",null,true,true,true,true,true,true,true,true,true,true,true,true,true,true,true,true,true,true,true,true,true,true,true,true,true,true,true,true,true,true,true]
[null,"Abteilungsinterne Teilfähigkeiten","D.1.1.2 Phasen des Kreditgeschäftes beschreiben","Abteilungsinterne Teilfähigkeiten","Praxisbeispiele erleben","Beobachtung","2021-02-01","2021-07-31","offen",180,"Felix Fröhlich",null,true,true,true,true,true,true,true,true,true,true,true,true,true,true,true,true,true,true,true,true,true,true,true,true,true,true,true,true,true,true,true]
[null,"Abteilungsinterne Teilfähigkeiten","D.1.1.4 Anwendung von Risikoklassen kommunizieren","Abteilungsinterne Teilfähigkeiten","Simulationsgespräche","Simulationsgespräch","2021-02-01","2021-07-31","offen",180,"Felix Fröhlich",null,{"$f":"OR(M$9=$G28,AND(M$9<$G28+$J28,M$9>$G28),M$9=$H28)","v":true},true,true,true,true,true,true,true,true,true,true,true,true,true,true,true,{"$f":"OR(AC$9=$G28,AND(AC$9<$G28+$J28,AC$9>$G28),AC$9=$H28)","v":true},true,true,true,true,true,true,true,true,true,true,true,true,true,true]
[null,"Abteilungsinterne Teilfähigkeiten","D.1.1.5 Voraussetzung zur Auszahlung eines Kredites beurteilen","Abteilungsinterne Teilfähigkeiten","Instruktion gemäss ARIVA, Learning on the Job","Beobachtung  , Simulationsgespräch","2021-02-01","2021-07-31","offen",180,"Felix Fröhlich",null,true,true,true,true,true,true,true,true,true,true,true,true,true,true,true,true,true,true,true,true,true,true,true,true,true,true,true,true,true,true,true]
[null,"Abteilungsinterne Teilfähigkeiten","D.1.2.3 Ungedeckte Kredite beschreiben (Privatkunden)","Abteilungsinterne Teilfähigkeiten","Praxisbeispiele erleben","Teilnahme an Kundengespräch  ","2021-02-01","2021-07-31","offen",180,"Felix Fröhlich",null,true,true,true,true,true,true,true,true,true,true,true,true,true,true,true,true,true,true,true,true,true,true,true,true,true,true,true,true,true,true,true]
[null,"Abteilungsinterne Teilfähigkeiten","D.1.3.1 Begriffe aus dem Liegenschaftengeschäft erklären und anwenden","Abteilungsinterne Teilfähigkeiten","Teilnahme Kundengespräch","mündliche Erklärung","2021-02-01","2021-07-31","offen",180,"Felix Fröhlich",null,true,true,true,true,true,true,true,true,true,true,true,true,true,true,true,true,true,true,true,true,true,true,true,true,true,true,true,true,true,true,true]
[null,"Abteilungsinterne Teilfähigkeiten","D.1.3.2 Grundbuch und Grundpfandtitel erklären","Abteilungsinterne Teilfähigkeiten","Instruktion gemäss ARIVA","Präsentation","2021-02-01","2021-07-31","offen",180,"Felix Fröhlich",null,true,true,true,true,true,true,true,true,true,true,true,true,true,true,true,true,true,true,true,true,true,true,true,true,true,true,true,true,true,true,true]
[null,"Abteilungsinterne Teilfähigkeiten","D.1.3.3 Belehnungssatz im Grundpfandgeschäft anwenden","Abteilungsinterne Teilfähigkeiten","Praxisbeispiele erleben","Beobachtung","2021-02-01","2021-07-31","offen",180,"Felix Fröhlich",null,true,true,true,true,true,true,true,true,true,true,true,true,true,true,true,true,true,true,true,true,true,true,true,true,true,true,true,true,true,true,true]
[null,"Abteilungsinterne Teilfähigkeiten","D.2.1.1 Unterlagen zur Kreditprüfung einfordern (Privatkunden)","Abteilungsinterne Teilfähigkeiten","Praxisbeispiele erleben","Teilnahme an Kundengespräch","2021-02-01","2021-07-31","offen",180,"Felix Fröhlich",null,true,true,true,true,true,true,true,true,true,true,true,true,true,true,true,true,true,true,true,true,true,true,true,true,true,true,true,true,true,true,true]
[null,"Abteilungsinterne Teilfähigkeiten","D.2.1.2 Kreditfähigkeit und Kreditwürdigkeit beurteilen (Privatkunden)","Abteilungsinterne Teilfähigkeiten","Praxisbeispiele erleben, Learning on the Job","Beobachtung","2021-02-01","2021-07-31","offen",180,"Felix Fröhlich",null,true,true,true,true,true,true,true,true,true,true,true,true,true,true,true,true,true,true,true,true,true,true,true,true,true,true,true,true,true,true,true]
[null,"Abteilungsinterne Teilfähigkeiten","D.2.2.1 Produkte im Grundpfand- sowie Faustpfandgeschäft unterscheiden (Privatkunden)","Abteilungsinterne Teilfähigkeiten","Instruktion gemäss ARIVA","mündliche Erklärung","2021-02-01","2021-07-31","offen",180,"Felix Fröhlich",null,true,true,true,true,true,true,true,true,true,true,true,true,true,true,true,true,true,true,true,true,true,true,true,true,true,true,true,true,true,true,true]
[null,"Abteilungsinterne Teilfähigkeiten","D.2.2.2 Finanzielle Auswirkungen von Grundpfandkrediten aufzeigen (Privatkunden)","Abteilungsinterne Teilfähigkeiten","Praxisbeispiele erleben, Teilnahme Kundengespräch","Simulationsgespräch","2021-02-01","2021-07-31","offen",180,"Felix Fröhlich",null,true,true,true,true,true,true,true,true,true,true,true,true,true,true,true,true,true,true,true,true,true,true,true,true,true,true,true,true,true,true,true]
[null,"Abteilungsinterne Teilfähigkeiten","D.2.2.3 Finanzierung einer Liegenschaft (Privatkunden)","Abteilungsinterne Teilfähigkeiten","Teilnahme Kundengespräch, Praxisbeispiele erleben","Beobachtung","2021-02-01","2021-07-31","offen",180,"Felix Fröhlich",null,true,true,true,true,true,true,true,true,true,true,true,true,true,true,true,true,true,true,true,true,true,true,true,true,true,true,true,true,true,true,true]
[null,"Einsatzbereich, relevante Aufgaben","abteilungsinterne Postverteilung","Abteilungsinterne Aufgaben","Instruktion gemäss ARIVA","Beobachtung","2021-02-01","2021-07-31","offen",180,"Felix Fröhlich",null,true,true,true,true,true,true,true,true,true,true,true,true,true,true,true,true,true,true,true,true,true,true,true,true,true,true,true,true,true,true,true]
[null,"Einsatzbereich, relevante Aufgaben","Basisprodukte kennen","Abteilungsinterne Aufgaben","Learning on the Job","Beobachtung, Teilnahme an Kundengespräch","2021-02-01","2021-07-31","offen",180,"Felix Fröhlich",null,true,true,true,true,true,true,true,true,true,true,true,true,true,true,true,true,true,true,true,true,true,true,true,true,true,true,true,true,true,true,true]
[null,"Einsatzbereich, relevante Aufgaben","mind 2x monatlich Teilnahme Kundengespräch","Abteilungsinterne Aufgaben","Praxisbeispiele erleben","Beobachtung, Teilnahme an Kundengespräch","2021-02-01","2021-07-31","offen",180,"Felix Fröhlich",null,true,true,true,true,true,true,true,true,true,true,true,true,true,true,true,true,true,true,true,true,true,true,true,true,true,true,true,true,true,true,true]
[null,"Einsatzbereich, relevante Aufgaben","Anwendung der Tools (Software etc.) ","Abteilungsinterne Aufgaben","Learning on the Job","Beobachtung","2021-02-01","2021-07-31","offen",180,"Felix Fröhlich",null,true,true,true,true,true,true,true,true,true,true,true,true,true,true,true,true,true,true,true,true,true,true,true,true,true,true,true,true,true,true,true]
[null,"Einsatzbereich, relevante Aufgaben","Kennenlernen, Mitarbeit Kundenberater Tätigkeiten","Abteilungsinterne Aufgaben","Learning on the Job, Praxisbeispiele erleben","Beobachtung","2021-02-01","2021-07-31","offen",180,"Felix Fröhlich",null,true,true,true,true,true,true,true,true,true,true,true,true,true,true,true,{"$f":"OR(AB$9=$G43,AND(AB$9<$G43+$J43,AB$9>$G43),AB$9=$H43)","v":true},true,true,true,true,true,true,true,true,true,true,true,true,true,true,true]
[null,"Abteilungsinterne Teilfähigkeiten","A.1.3.4 Gesetze und Regelungen anwenden","Abteilungsinterne Teilfähigkeiten","Learning on the Job","Beobachtung","2021-02-01","2021-07-31","offen",180,"Felix Fröhlich",null,{"$f":"OR(M$9=$G44,AND(M$9<$G44+$J44,M$9>$G44),M$9=$H44)","v":true},true,true,true,true,true,true,true,true,true,true,true,true,true,true,true,true,true,true,true,true,true,true,true,true,true,true,true,true,true,true]
[null,"Abteilungsinterne Teilfähigkeiten","A.2.2.2 Fachausdrücke kennen","Abteilungsinterne Teilfähigkeiten","Learning on the Job, Recherchen tätigen","Beobachtung, mündliche Erklärung","2021-02-01","2021-07-31","offen",180,"Felix Fröhlich",null,true,true,true,true,true,true,true,true,true,true,true,true,true,true,true,true,{"$f":"OR(AC$9=$G45,AND(AC$9<$G45+$J45,AC$9>$G45),AC$9=$H45)","v":true},true,true,true,true,true,true,true,true,true,true,true,true,true,true]
[null,"Abteilungsinterne Teilfähigkeiten","A.1.2.1 Sinn und Zweck der VSB erklären und VSB anwenden","Abteilungsinterne Teilfähigkeiten","Praxisbeispiele erleben","Beobachtung","2021-02-01","2021-07-31","offen",180,"Felix Fröhlich",null,true,true,true,true,true,true,true,true,true,true,true,true,true,true,true,true,true,true,true,true,true,true,true,true,true,true,true,true,true,true,true]
[null,"Abteilungsinterne Teilfähigkeiten","A.3.1.2 Vorsorgesystem und Vorsorgeprodukte erklären","Abteilungsinterne Teilfähigkeiten","Praxisbeispiele erleben, Factsheet erstellen","Beobachtung, Teilnahme an Kundengespräch","2021-02-01","2021-07-31","offen",180,"Felix Fröhlich",null,true,true,true,true,true,true,true,true,true,true,true,true,true,true,true,true,true,true,true,true,true,true,true,true,true,true,true,true,true,true,true]
[null,"Abteilungsinterne Teilfähigkeiten","A.4.1.1  Daten und Technologien verantwortungsbewusst nutzen","Abteilungsinterne Teilfähigkeiten","Learning on the Job","Beobachtung","2021-02-01","2021-07-31","offen",180,"Felix Fröhlich",null,true,true,true,true,true,true,true,true,true,true,true,true,true,true,true,true,true,true,true,true,true,true,true,true,true,true,true,true,true,true,true]
[null,"Abteilungsinterne Teilfähigkeiten","A.4.1.3 Digitales Banking erklären","Abteilungsinterne Teilfähigkeiten","Learning on the Job","mündliche Erklärung, Teilnahme an Kundengespräch","2021-02-01","2021-07-31","offen",180,"Felix Fröhlich",null,true,true,true,true,true,true,true,true,true,true,true,true,true,true,true,true,true,true,true,true,true,true,true,true,true,true,true,true,true,true,true]
[null,"Abteilungsinterne Teilfähigkeiten","B.1.1.1 Kontosortiment erklären","Abteilungsinterne Teilfähigkeiten","Learning on the Job","Teilnahme an Kundengespräch","2021-02-01","2021-07-31","offen",180,"Felix Fröhlich",null,true,true,true,true,true,true,true,true,true,true,true,true,true,true,true,true,true,true,true,true,true,true,true,true,true,true,true,true,true,true,true]
[null,"Abteilungsinterne Teilfähigkeiten","E.1.1.1 Nutzen des Beratungsprozesses aufzeigen","Abteilungsinterne Teilfähigkeiten","Instruktion gemäss ARIVA","Präsentation","2021-02-01","2021-07-31","offen",180,"Felix Fröhlich",null,true,true,true,true,true,true,true,true,true,true,true,true,true,true,true,true,true,true,true,true,true,true,true,true,true,true,true,true,true,true,true]
[null,"Abteilungsinterne Teilfähigkeiten","E.1.2.1 Beratungsprozess anwenden","Abteilungsinterne Teilfähigkeiten","Teilnahme Kundengespräch","Teilnahme an Kundengespräch","2021-02-01","2021-07-31","offen",180,"Felix Fröhlich",null,true,true,true,true,true,true,true,true,true,true,true,true,true,true,true,true,true,true,true,true,true,true,true,true,true,true,true,true,true,true,true]
[null,"Abteilungsinterne Teilfähigkeiten","E.1.2.2 Hilfsmittel beim Beratungsgespräch einsetzen","Abteilungsinterne Teilfähigkeiten","Teilnahme Kundengespräch","Teilnahme an Kundengespräch","2021-02-01","2021-07-31","offen",180,"Felix Fröhlich",null,true,true,true,true,true,true,true,true,true,true,true,true,true,true,true,true,true,true,true,true,true,true,true,true,true,true,true,true,true,true,true]
[null,"Abteilungsinterne Teilfähigkeiten","E.2.2.1 Fragetechniken anwenden","Abteilungsinterne Teilfähigkeiten","Praxisbeispiele erleben, Teilnahme Kundengespräch","Beobachtung","2021-02-01","2021-07-31","offen",180,"Felix Fröhlich",null,true,true,true,true,true,true,true,true,true,true,true,true,true,true,true,true,true,true,true,true,true,true,true,true,true,true,true,true,true,true,true]
[null,"Abteilungsinterne Teilfähigkeiten","E.2.3.1 Bedürfnisse von Kundengruppen unterscheiden","Abteilungsinterne Teilfähigkeiten","Learning on the Job","Beobachtung","2021-02-01","2021-07-31","offen",180,"Felix Fröhlich",null,true,true,true,true,true,true,true,true,true,true,true,true,true,true,true,true,true,true,true,true,true,true,true,true,true,true,true,true,true,true,true]
[null,"Abteilungsinterne Teilfähigkeiten","E.3.1.1 Vor-/Nachteile und Nutzen der Produkte und Dienstleistungen aufzeigen","Abteilungsinterne Teilfähigkeiten","Learning on the Job","Beobachtung, Teilnahme an Kundengespräch","2021-02-01","2021-07-31","offen",180,"Felix Fröhlich",null,true,true,true,true,true,true,true,true,true,true,true,true,true,true,true,true,true,true,true,true,true,true,true,true,true,true,true,true,true,true,true]
[null,"Abteilungsinterne Teilfähigkeiten","E.4.1.1 Kundenreklamationen bearbeiten","Abteilungsinterne Teilfähigkeiten","Instruktion gemäss ARIVA","Beobachtung","2021-02-01","2021-07-31","offen",180,"Felix Fröhlich",null,true,true,true,true,true,true,true,true,true,true,true,true,true,true,true,true,true,true,true,true,true,true,true,true,true,true,true,true,true,true,true]
[null,"Abteilungsinterne Teilfähigkeiten","E.4.2.1 Einwände entkräften","Abteilungsinterne Teilfähigkeiten","CYP-Kurse, Instruktion gemäss ARIVA","Beobachtung, Simulationsgespräch","2021-02-01","2021-07-31","offen",180,"Felix Fröhlich",null,true,true,true,true,true,true,true,true,true,true,true,true,true,true,true,true,true,true,true,true,true,true,true,true,true,true,true,true,true,true,true]
[null,"Abteilungsinterne Teilfähigkeiten","F.1.1.1 Qualitätsmerkmale einer kundenorientierten Abwicklung erläutern","Abteilungsinterne Teilfähigkeiten","CYP-Kurse, Instruktion gemäss ARIVA","Beobachtung, mündliche Erklärung","2021-02-01","2021-07-31","offen",180,"Felix Fröhlich",null,true,true,true,true,true,true,true,true,true,true,true,true,true,true,true,{"$f":"OR(AB$9=$G59,AND(AB$9<$G59+$J59,AB$9>$G59),AB$9=$H59)","v":true},true,true,true,true,true,true,true,true,true,true,true,true,true,true,true]
[null,"Abteilungsinterne Teilfähigkeiten","F.2.3.1 Korrespondenz bearbeiten ","Abteilungsinterne Teilfähigkeiten","Learning on the Job","Beobachtung","2021-02-01","2021-07-31","offen",180,"Felix Fröhlich",null,{"$f":"OR(M$9=$G60,AND(M$9<$G60+$J60,M$9>$G60),M$9=$H60)","v":true},true,true,true,true,true,true,true,true,true,true,true,true,true,true,true,true,true,true,true,true,true,true,true,true,true,true,true,true,true,true]
[null,"Ferien",null,"Administration",null,null,"2021-02-08","2021-07-31","erledigt",173,"PAB und LL",null,false,false,false,false,false,false,false,true,true,true,true,true,true,true,true,true,{"$f":"OR(AC$9=$G61,AND(AC$9<$G61+$J61,AC$9>$G61),AC$9=$H61)","v":true},true,true,true,true,true,true,true,true,true,true,true,true,true,true]
[null,"Ferien",null,"Administration",null,null,"2021-05-24","2021-05-31","erledigt",7,"PAB und LL",null,false,false,false,false,false,false,false,false,false,false,false,false,false,false,false,false,false,false,false,false,false,false,false,false,false,false,false,false,false,false,false]
[null,"Ferien",null,"Administration",null,null,"2021-07-12","2021-08-01","erledigt",20,"PAB und LL",null,false,false,false,false,false,false,false,false,false,false,false,false,false,false,false,false,false,false,false,false,false,false,false,false,false,false,false,false,false,false,false]
[null,"Zeitkontrolle",null,"Administration",null,null,"2021-03-05","2021-03-05","offen",0,"Mirjam Müller-Neff",null,false,false,false,false,false,false,false,false,false,false,false,false,false,false,false,false,false,false,false,false,false,false,false,false,false,false,false,false,false,false,false]
[null,"Zeitkontrolle",null,"Administration",null,null,"2021-04-05","2021-04-05","offen",0,"Mirjam Müller-Neff",null,false,false,false,false,false,false,false,false,false,false,false,false,false,false,false,false,false,false,false,false,false,false,false,false,false,false,false,false,false,false,false]
[null,"Zeitkontrolle",null,"Administration",null,null,"2021-05-05","2021-05-05","offen",0,"Mirjam Müller-Neff",null,false,false,false,false,false,false,false,false,false,false,false,false,false,false,false,false,false,false,false,false,false,false,false,false,false,false,false,false,false,false,false]
[null,"Zeitkontrolle",null,"Administration",null,null,"2021-06-05","2021-06-05","offen",0,"Mirjam Müller-Neff",null,false,false,false,false,false,false,false,false,false,false,false,false,false,false,false,false,false,false,false,false,false,false,false,false,false,false,false,false,false,false,false]
[null,"Zeitkontrolle",null,"Administration",null,null,"2021-07-05","2021-07-05","offen",0,"Mirjam Müller-Neff",null,false,false,false,false,false,false,false,false,false,false,false,false,false,false,false,false,false,false,false,false,false,false,false,false,false,false,false,false,false,false,false]
[null,"Schule",null,"Administration",null,null,"2021-02-08","2021-02-09","offen",1,"Felix Fröhlich",null,false,false,false,false,false,false,false,true,true,false,false,false,false,false,false,false,false,false,false,false,false,false,false,false,false,false,false,false,false,false,false]
[null,"Schule",null,"Administration",null,null,"2021-02-15","2021-02-16","offen",1,"Felix Fröhlich",null,false,false,false,false,false,false,false,false,false,false,false,false,false,false,true,true,false,false,false,false,false,false,false,false,false,false,false,false,false,false,false]
[null,"Schule",null,"Administration",null,null,"2021-02-22","2021-02-23","offen",1,"Felix Fröhlich",null,false,false,false,false,false,false,false,false,false,false,false,false,false,false,false,false,false,false,false,false,false,true,true,false,false,false,false,false,false,false,false]
[null,"CYP",null,"Administration",null,null,"2021-02-19","2021-02-19","offen",0,"Felix Fröhlich",null,false,false,false,false,false,false,false,false,false,false,false,false,false,false,false,false,false,false,true,false,false,false,false,false,false,false,false,false,false,false,false]
[null,"CYP",null,"Administration",null,null,"2021-03-03","2021-03-03","offen",0,"Felix Fröhlich",null,false,false,false,false,false,false,false,false,false,false,false,false,false,false,false,false,false,false,false,false,false,false,false,false,false,false,false,false,false,false,true]
[null,"CYP",null,"Administration",null,null,"2021-05-15","2021-05-15","offen",0,"Felix Fröhlich",null,false,false,false,false,false,false,false,false,false,false,false,false,false,false,false,false,false,false,false,false,false,false,false,false,false,false,false,false,false,false,false]
[null,"CYP",null,"Administration",null,null,"2021-06-09","2021-06-09","offen",0,"Felix Fröhlich",null,false,false,false,false,false,false,false,false,false,false,false,false,false,false,false,{"$f":"OR(AB$9=$G75,AND(AB$9<$G75+$J75,AB$9>$G75),AB$9=$H75)","v":false},false,false,false,false,false,false,false,false,false,false,false,false,false,false,false]
[null,"Ämtliplan","wöchentlich erledigen","Administration",null,null,"2021-02-01","2021-07-31","offen",180,"Felix Fröhlich",null,{"$f":"OR(M$9=$G76,AND(M$9<$G76+$J76,M$9>$G76),M$9=$H76)","v":true},true,true,true,true,true,true,true,true,true,true,true,true,true,true,true,true,true,true,true,true,true,true,true,true,true,true,true,true,true,true]
[null,"Ausbildungsplan","Ausbildungsplan erstellen","Administration",null,null,"2021-01-25","2021-01-25","erledigt",{"$f":"(IF($H77=\"\",\"1\",_xlfn.DAYS($H77,$G77)))","v":0},"Mirjam Müller-Neff",null,false,false,false,false,false,false,false,false,false,false,false,false,false,false,false,false,false,false,false,false,false,false,false,false,false,false,false,false,false,false,false]
[null,"Ausbildungsplan ","Einführung besprechen","Gespräche",null,null,"2021-02-01","2021-02-01","offen",0,"Mirjam Müller-Neff",null,true,false,false,false,false,false,false,false,false,false,false,false,false,false,false,false,false,false,false,false,false,false,false,false,false,false,false,false,false,false,false]
[null,"Ausbildungsplan ","wöchentliches Update","Gespräche",null,null,"2021-02-01","2021-07-31","offen",180,"PAB und LL",null,true,true,true,true,true,true,true,true,true,true,true,true,true,true,true,true,true,true,true,true,true,true,true,true,true,true,true,true,true,true,true]
[null,"Ausbildungsplan ","Abschlussbesprechung","Gespräche",null,null,"2021-07-08","2021-07-08","offen",0,"Mirjam Müller-Neff",null,false,false,false,false,false,false,false,false,false,false,false,false,false,false,false,false,false,false,false,false,false,false,false,false,false,false,false,false,false,false,false]
[null,"ALS ","ALS erstellen","Administration",null,null,"2021-01-25","2021-01-25","erledigt",0,"Mirjam Müller-Neff",null,false,false,false,false,false,false,false,false,false,false,false,false,false,false,false,false,false,false,false,false,false,false,false,false,false,false,false,false,false,false,false]
[null,"Praxistransferauftrag CYP",null,"Administration",null,null,"2021-02-20","2021-02-20","erledigt",0,"PAB und LL",null,false,false,false,false,false,false,false,false,false,false,false,false,false,false,false,false,false,false,false,true,false,false,false,false,false,false,false,false,false,false,false]
[null,"Praxistransferauftrag CYP",null,"Administration",null,null,"2021-03-04","2021-03-04","erledigt",0,"PAB und LL",null,false,false,false,false,false,false,false,false,false,false,false,false,false,false,false,false,false,false,false,false,false,false,false,false,false,false,false,false,false,false,false]
[null,"Praxistransferauftrag CYP",null,"Administration",null,null,"2021-04-11","2021-04-11","offen",{"$f":"(IF($H84=\"\",\"1\",_xlfn.DAYS($H84,$G84)))","v":0},"PAB und LL",null,false,false,false,false,false,false,false,false,false,false,false,false,false,false,false,false,false,false,false,false,false,false,false,false,false,false,false,false,false,false,false]
[null,"Praxistransferauftrag CYP",null,"Administration",null,null,"2021-06-12","2021-06-12","offen",{"$f":"(IF($H85=\"\",\"1\",_xlfn.DAYS($H85,$G85)))","v":0},"PAB und LL",null,false,false,false,false,false,false,false,false,false,false,false,false,false,false,false,false,false,false,false,false,false,false,false,false,false,false,false,false,false,false,false]
[null,"Einführungsgespräch",null,"Gespräche",null,null,"2021-02-03","2021-03-01","erledigt",{"$f":"(IF($H86=\"\",\"1\",_xlfn.DAYS($H86,$G86)))","v":26},"PAB und LL",null,false,false,true,true,true,true,true,true,true,true,true,true,true,true,true,true,true,true,true,true,true,true,true,true,true,true,true,true,true,false,false]
[null,"Einführungsgespräch ALS",null,"Gespräche",null,null,"2021-02-11","2021-02-11","erledigt",null,"PAB und LL",null,false,false,false,false,false,false,false,false,false,false,true,false,false,false,false,false,false,false,false,false,false,false,false,false,false,false,false,false,false,false,false]
[null,"Zwischengespräch ALS",null,"Gespräche",null,null,"2021-04-01","2021-04-01","offen",{"$f":"(IF($H88=\"\",\"1\",_xlfn.DAYS($H88,$G88)))","v":0},"PAB und LL",null,false,false,false,false,false,false,false,false,false,false,false,false,false,false,false,{"$f":"OR(AB$9=$G88,AND(AB$9<$G88+$J88,AB$9>$G88),AB$9=$H88)","v":false},false,false,false,false,false,false,false,false,false,false,false,false,false,false,false]
[null,"Beurteilungsgespräch ALS",null,"Gespräche",null,null,"2021-07-01","2021-07-01","offen",0,"PAB und LL",null,{"$f":"OR(M$9=$G89,AND(M$9<$G89+$J89,M$9>$G89),M$9=$H89)","v":false},false,false,false,false,false,false,false,false,false,false,false,false,false,false,false,false,false,false,false,false,false,false,false,false,false,false,false,false,false,false]
[null,"Abschlussgespräch Abteilung",null,"Gespräche",null,null,"2021-07-01","2021-07-01","offen",0,"PAB und LL",null,false,false,false,false,false,false,false,false,false,false,false,false,false,false,false,false,false,false,false,false,false,false,false,false,false,false,false,false,false,false,false]
[null,"Lerndokumentation","Auftragserteilung","Administration",null,null,"2021-02-01","2021-02-01","erledigt",0,"Mirjam Müller-Neff",null,true,false,false,false,false,false,false,false,false,false,false,false,false,false,false,false,false,false,false,false,false,false,false,false,false,false,false,false,false,false,false]
[null,"Lerndokumentation","Kontrolle","Administration",null,null,"2021-08-01","2021-08-01","offen",0,"Mirjam Müller-Neff",null,false,false,false,false,false,false,false,false,false,false,false,false,false,false,false,false,false,false,false,false,false,false,false,false,false,false,false,false,false,false,false]
[null,"Sprachaufenthalt",null,"Administration",null,null,"2021-04-01","2021-04-15","offen",14,"Felix Fröhlich",null,{"$f":"OR(M$9=$G93,AND(M$9<$G93+$J93,M$9>$G93),M$9=$H93)","v":false},false,false,false,false,false,false,false,false,false,false,false,false,false,false,false,false,false,false,false,false,false,false,false,false,false,false,false,false,false,false]
[null,"ALS Teilfähigkeiten Fach","A.1.1.3 Sinn und Zweck des Bankkundengeheimnisses erklären","Qualifikation / ALS","Instruktion gemäss ARIVA, Präsentation","Präsentation","2021-02-01","2021-07-01","offen",150,"Mirjam Müller-Neff",null,{"$f":"OR(M$9=$G94,AND(M$9<$G94+$J94,M$9>$G94),M$9=$H94)","v":true},true,true,true,true,true,true,true,true,true,true,true,true,true,true,true,true,true,true,true,true,true,true,true,true,true,true,true,true,true,true]
[null,"ALS Teilfähigkeiten Fach","A.1.2.1 Sinn und Zweck der VSB erklären und VSB anwenden","Qualifikation / ALS","Präsentation","Präsentation","2021-02-01","2021-07-01","offen",150,"Mirjam Müller-Neff",null,{"$f":"OR(M$9=$G95,AND(M$9<$G95+$J95,M$9>$G95),M$9=$H95)","v":true},true,true,true,true,true,true,true,true,true,true,true,true,true,true,true,true,true,true,true,true,true,true,true,true,true,true,true,true,true,true]
[null,"ALS Teilfähigkeiten Fach","A.3.2.1 Lage an Finanzmärkten beurteilen","Qualifikation / ALS","Learning on the Job","Beratung am Cash Service","2021-02-01","2021-07-01","offen",150,"Mirjam Müller-Neff",null,{"$f":"OR(M$9=$G96,AND(M$9<$G96+$J96,M$9>$G96),M$9=$H96)","v":true},true,true,true,true,true,true,true,true,true,true,true,true,true,true,true,true,true,true,true,true,true,true,true,true,true,true,true,true,true,true]
[null,"ALS Teilfähigkeiten Fach","B.1.1.1 Kontosortiment erklären","Qualifikation / ALS","Learning on the Job","Beratung am Cash Service","2021-02-01","2021-07-01","offen",150,"Mirjam Müller-Neff",null,{"$f":"OR(M$9=$G97,AND(M$9<$G97+$J97,M$9>$G97),M$9=$H97)","v":true},true,true,true,true,true,true,true,true,true,true,true,true,true,true,true,true,true,true,true,true,true,true,true,true,true,true,true,true,true,true]
[null,"ALS Teilfähigkeiten Fach","A.1.1.4 Geldwäscherei erklären","Qualifikation / ALS","Präsentation","Präsentation, Beratung am Cash Service","2021-02-01","2021-07-01","offen",150,"Mirjam Müller-Neff",null,true,true,true,true,true,true,true,true,true,true,true,true,true,true,true,true,true,true,true,true,true,true,true,true,true,true,true,true,true,true,true]
[null,"ALS Teilfähigkeiten Fach","A.2.2.2 Fachausdrücke kennen","Qualifikation / ALS","Learning on the Job","Beobachtung","2021-02-01","2021-07-01","offen",150,"Mirjam Müller-Neff",null,true,true,true,true,true,true,true,true,true,true,true,true,true,true,true,true,true,true,true,true,true,true,true,true,true,true,true,true,true,true,true]
[null,"ALS Teilfähigkeiten Fach","A.4.1.3 Digitales Banking erklären","Qualifikation / ALS","Praxisbeispiele erleben","Beobachtung","2021-02-01","2021-07-01","offen",150,"Mirjam Müller-Neff",null,true,true,true,true,true,true,true,true,true,true,true,true,true,true,true,true,true,true,true,true,true,true,true,true,true,true,true,true,true,true,true]
[null,"ALS Teilfähigkeiten Fach","A.1.3.1 Kollokationsplan und Einlegerschutzvereinbarung erklären","Qualifikation / ALS","Präsentation, CYP-Kurse","Simulationsgespräch","2021-02-01","2021-07-01","offen",150,"Mirjam Müller-Neff",null,true,true,true,true,true,true,true,true,true,true,true,true,true,true,true,true,true,true,true,true,true,true,true,true,true,true,true,true,true,true,true]
[null,"ALS Teilfähigkeiten MSS","M.1.1.1 Effizientes und systematisches Lernen und Arbeiten (1)","Qualifikation / ALS","Praxisbeispiele erleben","Beobachtung","2021-02-01","2021-07-01","offen",150,"Mirjam Müller-Neff",null,true,true,true,true,true,true,true,true,true,true,true,true,true,true,true,true,true,true,true,true,true,true,true,true,true,true,true,true,true,true,true]
[null,"ALS Teilfähigkeiten MSS","S.4.1.1 Umgangsformen (1)","Qualifikation / ALS","Praxisbeispiele erleben","Beobachtung","2021-02-01","2021-07-01","offen",150,"Mirjam Müller-Neff",null,true,true,true,true,true,true,true,true,true,true,true,true,true,true,true,true,true,true,true,true,true,true,true,true,true,true,true,true,true,true,true]
[null,"ALS Teilfähigkeiten MSS","S.3.1.3 Teamfähigkeit (3)","Qualifikation / ALS","Praxisbeispiele erleben","Beobachtung","2021-02-01","2021-07-01","offen",150,"Mirjam Müller-Neff",null,true,true,true,true,true,true,true,true,true,true,true,true,true,true,true,true,true,true,true,true,true,true,true,true,true,true,true,true,true,true,true]
[null,"ALS Teilfähigkeiten MSS","S.2.1.2 Kommunikationsfähigkeit (2)","Qualifikation / ALS","Praxisbeispiele erleben","Beobachtung","2021-02-01","2021-07-01","offen",150,"Mirjam Müller-Neff",null,true,true,true,true,true,true,true,true,true,true,true,true,true,true,true,true,true,true,true,true,true,true,true,true,true,true,true,true,true,true,true]
[null,"ALS Teilfähigkeiten MSS","S.1.1.1 Leistungsbereitschaft (1)","Qualifikation / ALS","Praxisbeispiele erleben","Beobachtung","2021-02-01","2021-07-01","offen",150,"Mirjam Müller-Neff",null,true,true,true,true,true,true,true,true,true,true,true,true,true,true,true,true,true,true,true,true,true,true,true,true,true,true,true,true,true,true,true]
[null,"ALS Teilfähigkeiten MSS","M.2.1.1 Vernetztes Denken und Handeln","Qualifikation / ALS","Praxisbeispiele erleben","Beobachtung","2021-02-01","2021-07-01","offen",150,"Mirjam Müller-Neff",null,true,true,true,true,true,true,true,true,true,true,true,true,true,true,true,true,true,true,true,true,true,true,true,true,true,true,{"$f":"OR(AM$9=$G107,AND(AM$9<$G107+$J107,AM$9>$G107),AM$9=$H107)","v":true},true,true,true,true]
[null,"ALS Teilfähigkeiten MSS","S.2.1.3 Kommunikationsfähigkeit (3)","Qualifikation / ALS","Praxisbeispiele erleben","Beobachtung","2021-02-01","2021-07-01","offen",150,"Mirjam Müller-Neff",null,true,true,true,true,true,true,true,true,true,true,true,true,true,true,true,true,{"$f":"OR(AC$9=$G108,AND(AC$9<$G108+$J108,AC$9>$G108),AC$9=$H108)","v":true},true,true,true,true,true,true,true,true,true,true,true,true,true,true]
[null,"ALS Teilfähigkeiten MSS","M.4.1.1 Wirksames Präsentieren (1)","Qualifikation / ALS","Praxisbeispiele erleben, Präsentation","Präsentation","2021-02-01","2021-07-01","offen",150,"Mirjam Müller-Neff",null,true,true,true,true,true,true,true,true,true,true,true,true,true,true,true,true,true,true,true,true,true,true,true,true,true,true,true,true,true,true,true]
[null,"Feedback ","Feedback PAB an LL","Administration",null,null,"2021-07-01","2021-08-01","offen",31,"PAB und LL",null,false,false,false,false,false,false,false,false,false,false,false,false,false,false,false,false,false,false,false,false,false,false,false,false,false,false,false,false,false,false,false]
[null,"Feedback ","Feedback LL an PAB","Administration",null,null,"2021-07-01","2021-08-01","offen",31,"PAB und LL",null,false,false,false,false,false,false,false,false,false,false,false,false,false,false,false,false,false,false,false,false,false,false,false,false,false,false,false,false,false,false,false]
[null,"Spielregeln","Pünktliches erscheinen","Spielregeln",null,null,"2021-02-01","2021-08-01","offen",181,"Felix Fröhlich",null,true,true,true,true,true,true,true,true,true,true,true,true,true,true,true,true,true,true,true,true,true,true,true,true,true,true,true,true,true,true,true]
[null,"Spielregeln","Handynutzung","Spielregeln",null,null,"2021-02-01","2021-08-01","offen",181,"Felix Fröhlich",null,true,true,true,true,true,true,true,true,true,true,true,true,true,true,true,true,true,true,true,true,true,true,true,true,true,true,true,true,true,true,true]
[null,"Spielregeln","Dresscode","Spielregeln",null,null,"2021-02-01","2021-08-01","offen",181,"Felix Fröhlich",null,true,true,true,true,true,true,true,true,true,true,true,true,true,true,true,true,true,true,true,true,true,true,true,true,true,true,true,true,true,true,true]
[null,"Spielregeln","Abwesenheit planen","Spielregeln",null,null,"2021-02-01","2021-08-01","offen",181,"Felix Fröhlich",null,true,true,true,true,true,true,true,true,true,true,true,true,true,true,true,true,true,true,true,true,true,true,true,true,true,true,true,true,true,true,true]
[null,"ALS","ALS bewerten","Administration",null,null,"2021-06-15","2021-07-15","offen",30,"Mirjam Müller-Neff",null,false,false,false,false,false,false,false,false,false,false,false,false,false,false,false,false,false,false,false,false,false,false,false,false,false,false,false,false,false,false,false]
[null,"(Muss immer letzte Zeile sein)",null,null,null,null,null,null,null,null,null,null,{"$f":"OR(M$9=$G117,AND(M$9<$G117+$J117,M$9>$G117),M$9=$H117)","v":false},false,false,false,false,false,false,false,false,false,false,false,false,false,false,false,false,false,false,false,false,false,false,false,false,false,false,false,false,false,false]
[null,{"$f":"\"1) Weitere Zeile hinzufügen: Allfällige Filter entfernen. \"&\"Beim Zeilenindex die Nummer \"&ROW($117:$117)&\" anklicken, so dass die gesamte Zeile ausgewählt wird. Dann unter Start > Zellen > auf \"\"Einfügen\"\" klicken.\"","v":"1) Weitere Zeile hinzufügen: Allfällige Filter entfernen. Beim Zeilenindex die Nummer 117 anklicken, so dass die gesamte Zeile ausgewählt wird. Dann unter Start > Zellen > auf \"Einfügen\" klicken."},null,null,null,null,null,null,null,null,null,null,{"$f":"\"2) Formel auf neue Zeile anwenden: \"&\"M\"&ROW($118:$118)-2&\" bis AQ\"&ROW($118:$118)-2&\" anwählen und den unteren rechten Ecken der Auswahl auf Zeile \"&ROW($118:$118)-1&\" ziehen.\"","v":"2) Formel auf neue Zeile anwenden: M116 bis AQ116 anwählen und den unteren rechten Ecken der Auswahl auf Zeile 117 ziehen."}]
[]
[]
["Der Ausbildungsplan wurde zu Beginn des Einsatzes mit dem Lernenden besprochen und abgegeben:"]
[]
[]
[]
["Datum und Unterschrift Berufsbildner/in",null,"Datum und Unterschrift Lernender"]
[]
[]
["Hiermit bestätige ich, dass ich die Abschlussarbeiten vollständig erledigt, Einsicht in die Lerndokumentation genommen und Feedback dazu gegeben habe:"]
[]
[]
[]
["Datum und Unterschrift Berufsbildner/in"]

{"sheet":"Referenzen für Dropdown","index":2,"n_rows":112,"n_cols":11,"rows_kept":112,"cut":false,"hidden":false,"merged":[[0,1,1,1],[0,4,1,4],[0,2,1,2],[0,5,1,5],[0,10,1,10],[0,8,1,8],[0,9,1,9],[0,3,1,3],[0,7,1,7],[0,6,1,6]]}
[null,"THEMA","TEILFÄHIGKEIT","KATEGORIE","INSTRUKTION / METHODIK","BEWERTUNG","STATUS","ANFANG","ENDE","Anzahl Tage","VERANTWORTLICH"]
[]
[null,"Ferien","A.1.1.1 Relevante Gesetze und bankengesetzliche Vorschriften erklären","Abteilungsinterne Teilfähigkeiten",null,null,"offen","Kein Dropdown","Kein Dropdown","Automatisch","Felix Fröhlich"]
[null,"Schule","A.1.1.3 Sinn und Zweck des Bankkundengeheimnisses erklären","Spielregeln","CYP-Kurse","Beobachtung","pendent",null,null,null,"Anja Lüscher"]
[null,"Sprachaufenthalte","A.1.1.4 Geldwäscherei erklären","Gespräche","Präsentation","Präsentation","erledigt",null,null,null,"Mirjam Müller-Neff"]
[null,"CYP","A.1.2.1 Sinn und Zweck der VSB erklären und VSB anwenden","Abteilungsinterne Aufgaben","Instruktion gemäss ARIVA","Teilnahme an Kundengespräch",null,null,null,null,"PAB und LL"]
[null,"Ämtliplan","A.1.3.1 Kollokationsplan und Einlegerschutzvereinbarung erklären","ALS Teilfähigkeiten","Praxisbeispiele erleben","Telefongespräch",null,null,null,null,"Eigene Kategorie 1"]
[null,"Praxistransferauftrag CYP","A.1.3.2 Gesetzliche Grundlagen der Geldausgabe und Besonderheiten der Banknoten und Münzen kennen","Administration","Simulationsgespräche","Beratung am Cash Service",null,null,null,null,"Eigene Kategorie 2"]
[null,"Zeitkontrolle","A.1.3.4 Gesetze und Regelungen anwenden","Qualifikation / ALS","Learning on the Job","Simulationsgespräch",null,null,null,null,"Eigene Kategorie 3"]
[null,"ALS ","A.2.1.1 Volkswirtschaftliche Aufgaben der Banken erklären","Eigene Kategorie 1","Factsheet erstellen","mündliche Erklärung"]
[null,"Ausbildungsplan","A.2.1.3 Rechtsform, Organisation, Geschäftstätigkeit und Entwicklung der eigenen Bank beschreiben","Eigene Kategorie 2","Zeitungen lesen","Visualisierung"]
[null,"GAZ Kontrolle","A.2.1.6 Jahresrechnung erklären","Eigene Kategorie 3","Recherchen tätigen","Video erstellen"]
[null,"ALS Teilfähigkeiten Fach","A.2.1.8 Veränderungen in der Branche analysieren",null,"Praxistransfer CYP/Bank","Abwesenheit"]
[null,"ALS Teilfähigkeiten MSS","A.2.2.1 Risikotypen und -arten im betrieblichen Umfeld beschreiben",null,"Abwesenheit","siehe sep. Ämtliplan"]
[null,"Lerndokumentation","A.2.2.2 Fachausdrücke kennen",null,"Teilnahme Kundengespräch","Eigene Methodik 1"]
[null,"Feedback","A.3.1.1 Hauptaufgaben und geldpolitische Instrumente der Schweizerischen Nationalbank aufzeigen",null,"Eigene Kategorie 1","Eigene Methodik 2"]
[null,"Spielregeln","A.3.1.2 Vorsorgesystem und Vorsorgeprodukte erklären",null,"Eigene Kategorie 2","Eigene Methodik 3"]
[null,null,"A.3.2.1 Lage an Finanzmärkten beurteilen",null,"Eigene Kategorie 3"]
[null,null,"A.3.2.2 Währungsentwicklung begründen",null," "]
[null,null,"A.4.1.1  Daten und Technologien verantwortungsbewusst nutzen",null," "]
[null,null,"A.4.1.2  Digitale Technologien verstehen und erklären",null," "]
[null,null,"A.4.1.3 Digitales Banking erklären",null," "]
[null,null,"B.1.1.1 Kontosortiment erklären",null," "]
[null,null,"B.1.1.3 Eröffnung einer neuen Kundenbeziehung / Aufhebung einer bestehenden Kundenbeziehung",null," "]
[null,null,"B.2.1.1 Produkte des Zahlungsverkehrs beschreiben und erklären",null," "]
[null,null,"B.2.1.3 Ablauf einer Zahlung erklären",null," "]
[null,null,"B.2.2.1 Vorgehen bei Verlust von Zahlungsmitteln erklären",null," "]
[null,null,"B.2.3.1  Eröffnungsprozess und Produkte des Zahlungsverkehrs für Firmenkunden erklären",null," "]
[null,null,"B.3.1.1 Abwicklung von Basisdienstleistungen ausführen",null," "]
[null,null,"B.3.1.2 Preisgestaltung bei Basisdienstleistungen erklären",null," "]
[null,null,"C.1.1.1 Wertpapiere und deren Übertragungsart erklären",null," "]
[null,null,"C.1.1.2 Wertpapiere nach Arten und Kriterien unterscheiden",null," "]
[null,null,"C.1.1.3 Verjährungsfristen kennen und den Wertpapieren zuordnen",null," "]
[null,null,"C.1.2.1 Rating und Renditeberechnung eines Gläubigerpapiers erklären",null," "]
[null,null,"C.1.2.2 Kennzahlen zu Aktien und aktienähnlichen Papieren berechnen",null," "]
[null,null,"C.1.3.1 Begriff Anlagefonds definieren und beteiligte Parteien im Anlagefondsgeschäft beschreiben",null," "]
[null,null,"C.1.3.2 \n Vermögensverwaltungsge-schäft (Portfoliomanagement) und beteiligte Parteien beschreiben",null," "]
[null,null,"C.2.1.1 Optionsarten unterscheiden und erklären",null," "]
[null,null,"C.2.1.3 Strukturierte Produkte beschreiben",null," "]
[null,null,"C.2.2.1  Geld- und Kapitalmarktinstrumente beschreiben",null," "]
[null,null,"C.2.3.1 Devisengeschäfte erklären",null," "]
[null,null,"C.2.4.1 Eigenschaften und Risiken von Edelmetallanlagen beschreiben",null," "]
[null,null,"C.3.1.1 Platzierungsformen einer Emission beschreiben",null," "]
[null,null,"C.3.2.1 Kapitalerhöhung erklären und Bezugsrecht berechnen",null," "]
[null,null,"C.4.1.1 Börse und Börsenorganisation beschreiben",null," "]
[null,null,"C.4.1.2 Ablauf Börsenauftrag SIX Swiss Exchange erklären",null," "]
[null,null,"C.4.2.1 Börsenindizes erklären",null," "]
[null,null,"C.5.1.1 Anlagestrategie zuordnen",null," "]
[null,null,"C.5.1.2 Kundendepot analysieren",null," "]
[null,null,"C.5.1.3 Anlagevorschläge erarbeiten",null," "]
[null,null,"C.5.1.4 Finanzplanung anbieten",null," "]
[null,null,"C.5.2.1 Risikoaufklärung im Effektenhandels- und Vermögensverwaltungs-geschäft erläutern",null," "]
[null,null,"C.5.3.1 Aufbewahrung und Verwaltung von Vermögenswerten und Dokumenten beschreiben und Gebühren begründen",null," "]
[null,null,"D.1.1.1 Kreditpolitik der eigenen Bank erklären",null," "]
[null,null,"D.1.1.2 Phasen des Kreditgeschäftes beschreiben",null," "]
[null,null,"D.1.1.4 Anwendung von Risikoklassen kommunizieren",null," "]
[null,null,"D.1.1.5 Voraussetzung zur Auszahlung eines Kredites beurteilen",null," "]
[null,null,"D.1.2.1 Lombardkredit/Wertschriften-kredit erläutern",null," "]
[null,null,"D.1.2.3 Ungedeckte Kredite beschreiben (Privatkunden)",null," "]
[null,null,"D.1.3.1 Begriffe aus dem Liegenschaftengeschäft erklären und anwenden",null," "]
[null,null,"D.1.3.2 Grundbuch und Grundpfandtitel erklären",null," "]
[null,null,"D.1.3.3 Belehnungssatz im Grundpfandgeschäft anwenden",null," "]
[null,null,"D.2.1.1 Unterlagen zur Kreditprüfung einfordern (Privatkunden)",null," "]
[null,null,"D.2.1.2 Kreditfähigkeit und Kreditwürdigkeit beurteilen (Privatkunden)",null," "]
[null,null,"D.2.2.1 Produkte im Grundpfand- sowie Faustpfandgeschäft unterscheiden (Privatkunden)",null," "]
[null,null,"D.2.2.2 Finanzielle Auswirkungen von Grundpfandkrediten aufzeigen (Privatkunden)",null," "]
[null,null,"D.2.2.3 Finanzierung einer Liegenschaft (Privatkunden)",null," "]
[null,null,"D.2.3.1 Konsumkredit und Konsumgüterleasing unterscheiden",null," "]
[null,null,"D.3.1.1 Kreditfähigkeit und Kreditwürdigkeit von Firmenkunden beurteilen ",null," "]
[null,null,"D.3.2.1 Produkte und Ablauf Kreditgewährung für Firmenkunden erklären ",null," "]
[null,null,"E.1.1.1 Nutzen des Beratungsprozesses aufzeigen",null," "]
[null,null,"E.1.2.1 Beratungsprozess anwenden",null," "]
[null,null,"E.1.2.2 Hilfsmittel beim Beratungsgespräch einsetzen",null," "]
[null,null,"E.2.1.1 Bedeutung der Bedürfnisabklärung aufzeigen",null," "]
[null,null,"E.2.2.1 Fragetechniken anwenden",null," "]
[null,null,"E.2.3.1 Bedürfnisse von Kundengruppen unterscheiden",null," "]
[null,null,"E.3.1.1 Vor-/Nachteile und Nutzen der Produkte und Dienstleistungen aufzeigen",null," "]
[null,null,"E.4.1.1 Kundenreklamationen bearbeiten",null," "]
[null,null,"E.4.2.1 Einwände entkräften",null," "]
[null,null,"F.1.1.1 Qualitätsmerkmale einer kundenorientierten Abwicklung erläutern",null," "]
[null,null,"F.1.1.2 Überblick über Prozesse verschaffen",null," "]
[null,null,"F.2.1.1 Erfolgskontrollen durchführen",null," "]
[null,null,"F.2.2.1 Kasse führen",null," "]
[null,null,"F.2.3.1 Korrespondenz bearbeiten ",null," "]
[null,null,"F.2.4.1 Brief- und Paketpost bearbeiten",null," "]
[null,null,"F.2.5.1 Daten und Dokumente verwalten ",null," "]
[null,null,"F.2.6.1 Aufgaben der internen Kommunikation ausführen ",null," "]
[null,null,"F.2.7.1 Sitzungen und Anlässe organisieren",null," "]
[null,null,"F.2.8.1 Büromaterial und Büroeinrichtungen beschaffen und verwalten",null," "]
[null,null,"M.1.1.1 Effizientes und systematisches Lernen und Arbeiten (1)",null," "]
[null,null,"M.1.1.2 Effizientes und systematisches Lernen und Arbeiten (2)",null," "]
[null,null,"M.1.1.3 Effizientes und systematisches Lernen und Arbeiten (3)",null," "]
[null,null,"M.2.1.1 Vernetztes Denken und Handeln",null," "]
[null,null,"M.3.1.1 Erfolgreiches Beraten und Verhandeln (1)",null," "]
[null,null,"M.3.1.2 Erfolgreiches Beraten und Verhandeln (2)",null," "]
[null,null,"M.4.1.1 Wirksames Präsentieren (1)",null," "]
[null,null,"M.4.1.2 Wirksames Präsentieren (2)",null," "]
[null,null,"S.1.1.1 Leistungsbereitschaft (1)",null," "]
[null,null,"S.1.1.2 Leistungsbereitschaft (2)",null," "]
[null,null,"S.2.1.1 Kommunikationsfähigkeit (1)",null," "]
[null,null,"S.2.1.2 Kommunikationsfähigkeit (2)",null," "]
[null,null,"S.2.1.3 Kommunikationsfähigkeit (3)",null," "]
[null,null,"S.2.1.4 Kommunikationsfähigkeit (4)",null," "]
[null,null,"S.3.1.1 Teamfähigkeit (1)",null," "]
[null,null,"S.3.1.2 Teamfähigkeit (2)",null," "]
[null,null,"S.3.1.3 Teamfähigkeit (3)",null," "]
[null,null,"S.4.1.1 Umgangsformen (1)",null," "]
[null,null,"S.4.1.2 Umgangsformen (2)",null," "]
[null,null,"S.5.1.1 Lernfähigkeit (1)",null," "]
[null,null,"S.5.1.2 Lernfähigkeit (2)",null," "]
[null,null,"S.6.1.1 Ökologisches Bewusstsein",null," "]
[null,null,null,null," "]